[Event "*** SCC Grand Prix: Titled Tuesday Blitz"]
[Site "Chess.com"]
[Date "2020.06.02"]
[Round "4"]
[White "AcostaPablo"]
[Black "ErikRonka"]
[Result "1-0"]
[WhiteElo "2611"]
[BlackElo "2392"]
[TimeControl "180+1"]
[EndTime "10:39:18 PDT"]
[Termination "AcostaPablo won by resignation"]

1. d4 {[%clk 0:03:00.9]} 1... Nf6 {[%clk 0:02:50.6]} 2. c4 {[%clk 0:02:59.9]}
2... b6 {[%clk 0:02:37.2]} 3. Nf3 {[%clk 0:02:53.4]} 3... Bb7 {[%clk 0:02:35.4]}
4. e3 {[%clk 0:02:53.4]} 4... g6 {[%clk 0:02:33.9]} 5. Be2 {[%clk 0:02:50.3]}
5... Bg7 {[%clk 0:02:34.5]} 6. O-O {[%clk 0:02:50.8]} 6... O-O {[%clk
0:02:35.1]} 7. Nc3 {[%clk 0:02:51]} 7... c5 {[%clk 0:02:32.1]} 8. b3 {[%clk
0:02:36.2]} 8... cxd4 {[%clk 0:02:26.8]} 9. Nxd4 {[%clk 0:02:32.5]} 9... d6
{[%clk 0:02:21.3]} 10. Bb2 {[%clk 0:02:30.5]} 10... Nbd7 {[%clk 0:02:21.1]} 11.
Rc1 {[%clk 0:02:30.6]} 11... Rc8 {[%clk 0:02:18.8]} 12. h3 {[%clk 0:02:23.5]}
12... Qc7 {[%clk 0:02:18.3]} 13. Nd5 {[%clk 0:01:59.2]} 13... Nxd5 {[%clk
0:01:57.5]} 14. cxd5 {[%clk 0:01:57.6]} 14... Qb8 {[%clk 0:01:56.8]} 15. Bf3
{[%clk 0:01:25.6]} 15... Ne5 {[%clk 0:01:52.4]} 16. Qe2 {[%clk 0:01:20]} 16...
Qa8 {[%clk 0:01:49.8]} 17. e4 {[%clk 0:01:14.6]} 17... Rxc1 {[%clk 0:01:41.3]}
18. Rxc1 {[%clk 0:01:14.2]} 18... Rc8 {[%clk 0:01:41.8]} 19. Bg4 {[%clk
0:01:14.3]} 19... Rxc1+ {[%clk 0:01:40.8]} 20. Bxc1 {[%clk 0:01:14.4]} 20... h5
{[%clk 0:01:40]} 21. Bf3 {[%clk 0:01:13.1]} 21... Qc8 {[%clk 0:01:37.1]} 22. Bb2
{[%clk 0:01:11.1]} 22... Qc5 {[%clk 0:01:23.8]} 23. Qd2 {[%clk 0:01:05.7]} 23...
a5 {[%clk 0:01:05.5]} 24. Be2 {[%clk 0:01:04]} 24... Kh7 {[%clk 0:00:50.9]} 25.
g3 {[%clk 0:00:59.7]} 25... Bc8 {[%clk 0:00:45.9]} 26. Kg2 {[%clk 0:00:59.2]}
26... Bd7 {[%clk 0:00:45.8]} 27. f4 {[%clk 0:00:54.6]} 27... h4 {[%clk
0:00:36.9]} 28. fxe5 {[%clk 0:00:50.9]} 28... Bxe5 {[%clk 0:00:31.2]} 29. gxh4
{[%clk 0:00:42.1]} 29... Qc8 {[%clk 0:00:28.6]} 30. Nf3 {[%clk 0:00:36.7]} 30...
Bxh3+ {[%clk 0:00:27.7]} 31. Kf2 {[%clk 0:00:36.9]} 31... Bxb2 {[%clk
0:00:09.9]} 32. Qxb2 {[%clk 0:00:36.3]} 32... Qg4 {[%clk 0:00:08.2]} 33. Ng5+
{[%clk 0:00:30.8]} 33... Kg8 {[%clk 0:00:08.6]} 34. Bxg4 {[%clk 0:00:30.6]} 1-0

[Event "*** SCC Grand Prix: Titled Tuesday Blitz"]
[Site "Chess.com"]
[Date "2020.06.02"]
[Round "4"]
[White "szachuspl"]
[Black "ARMQUEEN"]
[Result "1-0"]
[WhiteElo "2522"]
[BlackElo "2327"]
[TimeControl "180+1"]
[EndTime "10:39:18 PDT"]
[Termination "szachuspl won by resignation"]

1. d4 {[%clk 0:03:00.9]} 1... d5 {[%clk 0:02:58.5]} 2. c4 {[%clk 0:03:00.8]}
2... dxc4 {[%clk 0:02:58.5]} 3. Nf3 {[%clk 0:02:59.4]} 3... Nf6 {[%clk
0:02:58.3]} 4. Nc3 {[%clk 0:02:59.4]} 4... e6 {[%clk 0:02:56.7]} 5. e3 {[%clk
0:02:56.1]} 5... a6 {[%clk 0:02:56.2]} 6. Bxc4 {[%clk 0:02:55.7]} 6... c5 {[%clk
0:02:51.1]} 7. O-O {[%clk 0:02:54.4]} 7... Qc7 {[%clk 0:02:51.1]} 8. Qe2 {[%clk
0:02:54.1]} 8... b5 {[%clk 0:02:49.9]} 9. Bd3 {[%clk 0:02:54.2]} 9... Bb7 {[%clk
0:02:42.5]} 10. dxc5 {[%clk 0:02:52]} 10... Bxc5 {[%clk 0:02:41]} 11. Bd2 {[%clk
0:02:51.8]} 11... Nbd7 {[%clk 0:02:38.7]} 12. Rfc1 {[%clk 0:02:50.1]} 12... Qd6
{[%clk 0:02:35.5]} 13. e4 {[%clk 0:02:42.6]} 13... Ng4 {[%clk 0:02:34.8]} 14.
Rf1 {[%clk 0:02:37]} 14... Nde5 {[%clk 0:02:28]} 15. Nxe5 {[%clk 0:02:34.1]}
15... Nxe5 {[%clk 0:02:28.9]} 16. Bc2 {[%clk 0:02:29.9]} 16... Rd8 {[%clk
0:02:23.1]} 17. Bf4 {[%clk 0:02:28.5]} 17... Bd4 {[%clk 0:02:18.3]} 18. Bg3
{[%clk 0:02:19.5]} 18... O-O {[%clk 0:02:17]} 19. Rfd1 {[%clk 0:02:19.2]} 19...
Qb6 {[%clk 0:02:16.4]} 20. Kh1 {[%clk 0:02:15.9]} 20... Nc4 {[%clk 0:02:13.9]}
21. Bb3 {[%clk 0:02:13.1]} 21... Na5 {[%clk 0:02:01.5]} 22. h3 {[%clk
0:02:06.4]} 22... Nc6 {[%clk 0:01:53.1]} 23. f3 {[%clk 0:01:56.7]} 23... Ne7
{[%clk 0:01:44.3]} 24. Rac1 {[%clk 0:01:53.2]} 24... Ng6 {[%clk 0:01:33.9]} 25.
f4 {[%clk 0:01:42]} 25... Ne7 {[%clk 0:01:29]} 26. Kh2 {[%clk 0:01:40.4]} 26...
Bc6 {[%clk 0:01:22.6]} 27. Rd3 {[%clk 0:01:37.4]} 27... a5 {[%clk 0:01:08.7]}
28. Rcd1 {[%clk 0:01:19.9]} 28... a4 {[%clk 0:01:03.8]} 29. Bc2 {[%clk 0:01:20]}
29... Rd7 {[%clk 0:00:55.3]} 30. Rxd4 {[%clk 0:01:01.2]} 30... Rxd4 {[%clk
0:00:51.5]} 31. Bf2 {[%clk 0:01:00.6]} 31... Rfd8 {[%clk 0:00:39.8]} 32. Rxd4
{[%clk 0:01:00.2]} 32... Rxd4 {[%clk 0:00:37.8]} 33. Qe3 {[%clk 0:01:00]} 33...
b4 {[%clk 0:00:22.8]} 34. Nxa4 {[%clk 0:00:59]} 34... Bxa4 {[%clk 0:00:02.4]}
35. Bxa4 {[%clk 0:00:57.6]} 35... e5 {[%clk 0:00:02.7]} 36. fxe5 {[%clk
0:00:55.2]} 36... Qa5 {[%clk 0:00:02.9]} 37. Qxd4 {[%clk 0:00:54.6]} 37... g6
{[%clk 0:00:03.2]} 38. Bb3 {[%clk 0:00:53]} 38... Kg7 {[%clk 0:00:03.1]} 39. e6+
{[%clk 0:00:52.5]} 39... f6 {[%clk 0:00:03.1]} 40. Bg3 {[%clk 0:00:52.6]} 40...
Nc6 {[%clk 0:00:02.9]} 41. Qd7+ {[%clk 0:00:52.2]} 1-0

[Event "*** SCC Grand Prix: Titled Tuesday Blitz"]
[Site "Chess.com"]
[Date "2020.06.02"]
[Round "4"]
[White "dolynachess"]
[Black "gemarin"]
[Result "0-1"]
[WhiteElo "2359"]
[BlackElo "2020"]
[TimeControl "180+1"]
[EndTime "10:39:18 PDT"]
[Termination "gemarin won by resignation"]

1. d4 {[%clk 0:03:00.9]} 1... d5 {[%clk 0:02:58.6]} 2. c4 {[%clk 0:03:00.9]}
2... c6 {[%clk 0:02:58]} 3. Nc3 {[%clk 0:03:00.3]} 3... Nf6 {[%clk 0:02:57.3]}
4. Nf3 {[%clk 0:02:59.9]} 4... e6 {[%clk 0:02:55.1]} 5. g3 {[%clk 0:02:59]} 5...
Be7 {[%clk 0:02:48.9]} 6. Bg2 {[%clk 0:02:59.5]} 6... O-O {[%clk 0:02:48.2]} 7.
O-O {[%clk 0:03:00.1]} 7... Nbd7 {[%clk 0:02:47.8]} 8. Qd3 {[%clk 0:02:59.4]}
8... b6 {[%clk 0:02:47.5]} 9. Rd1 {[%clk 0:02:58.9]} 9... Bb7 {[%clk 0:02:46.7]}
10. e4 {[%clk 0:02:56.8]} 10... dxe4 {[%clk 0:02:38.8]} 11. Nxe4 {[%clk
0:02:57.7]} 11... Nxe4 {[%clk 0:02:37.1]} 12. Qxe4 {[%clk 0:02:58.6]} 12... Nf6
{[%clk 0:02:34.4]} 13. Qe2 {[%clk 0:02:58.7]} 13... Qc7 {[%clk 0:02:27.4]} 14.
Bf4 {[%clk 0:02:55.3]} 14... Bd6 {[%clk 0:02:26.4]} 15. Ne5 {[%clk 0:02:55]}
15... Rad8 {[%clk 0:02:21.6]} 16. c5 {[%clk 0:02:47.9]} 16... Bxe5 {[%clk
0:02:10.1]} 17. Bxe5 {[%clk 0:02:34.7]} 17... Qe7 {[%clk 0:02:09.7]} 18. Bd6
{[%clk 0:02:12.5]} 18... Rxd6 {[%clk 0:02:06.7]} 19. cxd6 {[%clk 0:02:13.4]}
19... Qxd6 {[%clk 0:02:07]} 20. Rac1 {[%clk 0:02:13.2]} 20... Nd5 {[%clk
0:02:01.3]} 21. a3 {[%clk 0:02:08]} 21... Rd8 {[%clk 0:01:59.2]} 22. Qe5 {[%clk
0:02:07.2]} 22... Qd7 {[%clk 0:01:55.2]} 23. b4 {[%clk 0:02:05.5]} 23... h6
{[%clk 0:01:12.9]} 24. h4 {[%clk 0:02:01.1]} 24... Qe7 {[%clk 0:00:58.5]} 25. f4
{[%clk 0:01:36.6]} 25... Qd7 {[%clk 0:00:57.1]} 26. Kh2 {[%clk 0:01:34.5]} 26...
Kf8 {[%clk 0:00:52.3]} 27. Re1 {[%clk 0:01:26.6]} 27... Kg8 {[%clk 0:00:33.9]}
28. h5 {[%clk 0:01:14.4]} 28... Nf6 {[%clk 0:00:32.7]} 29. b5 {[%clk 0:01:05.2]}
29... Ng4+ {[%clk 0:00:31.4]} 30. Kh3 {[%clk 0:00:43.5]} 30... Nxe5 {[%clk
0:00:31]} 31. dxe5 {[%clk 0:00:39.9]} 31... c5 {[%clk 0:00:25.6]} 32. Bxb7
{[%clk 0:00:17.7]} 32... Qxb7 {[%clk 0:00:25.1]} 33. Rcd1 {[%clk 0:00:18.1]}
33... Rd5 {[%clk 0:00:24.7]} 34. Kg4 {[%clk 0:00:17]} 34... Qd7 {[%clk
0:00:24.7]} 35. a4 {[%clk 0:00:17.2]} 35... Rxd1 {[%clk 0:00:23.1]} 0-1

[Event "*** SCC Grand Prix: Titled Tuesday Blitz"]
[Site "Chess.com"]
[Date "2020.06.02"]
[Round "4"]
[White "Ali-Farahat"]
[Black "Igor_Lysyj"]
[Result "1-0"]
[WhiteElo "2387"]
[BlackElo "2769"]
[TimeControl "180+1"]
[EndTime "10:39:20 PDT"]
[Termination "Ali-Farahat won by resignation"]

1. e4 {[%clk 0:03:00.9]} 1... e5 {[%clk 0:02:59.7]} 2. Nf3 {[%clk 0:03:00.8]}
2... Nc6 {[%clk 0:02:59.2]} 3. Nc3 {[%clk 0:03:01]} 3... Nf6 {[%clk 0:02:58.2]}
4. Bb5 {[%clk 0:03:00.8]} 4... Bc5 {[%clk 0:02:54.4]} 5. Nxe5 {[%clk 0:02:59.6]}
5... Nxe5 {[%clk 0:02:52.6]} 6. d4 {[%clk 0:02:59.6]} 6... Bd6 {[%clk
0:02:52.6]} 7. dxe5 {[%clk 0:02:59.7]} 7... Bxe5 {[%clk 0:02:52.1]} 8. O-O
{[%clk 0:03:00.4]} 8... O-O {[%clk 0:02:51]} 9. Bg5 {[%clk 0:03:00.4]} 9... h6
{[%clk 0:02:46.8]} 10. Bh4 {[%clk 0:03:00.4]} 10... c6 {[%clk 0:02:40.2]} 11.
Bd3 {[%clk 0:02:59.2]} 11... Qb6 {[%clk 0:02:38.4]} 12. Rb1 {[%clk 0:02:51.6]}
12... d6 {[%clk 0:02:34.4]} 13. Kh1 {[%clk 0:02:47]} 13... g5 {[%clk 0:02:22]}
14. f4 {[%clk 0:02:40.7]} 14... gxf4 {[%clk 0:02:14.7]} 15. Ne2 {[%clk
0:02:10.8]} 15... Nh5 {[%clk 0:02:00.6]} 16. Ng3 {[%clk 0:02:03.3]} 16... Ng7
{[%clk 0:01:47]} 17. Nh5 {[%clk 0:01:59.6]} 17... Qc5 {[%clk 0:01:14.6]} 18. b4
{[%clk 0:01:49.7]} 18... Qb6 {[%clk 0:01:08.5]} 19. Nf6+ {[%clk 0:01:24.6]}
19... Kh8 {[%clk 0:01:01.1]} 20. Ng4 {[%clk 0:01:22.9]} 20... Bxg4 {[%clk
0:00:58.5]} 21. Qxg4 {[%clk 0:01:22]} 21... Qc7 {[%clk 0:00:52.1]} 22. Rxf4
{[%clk 0:01:15.2]} 22... Qc8 {[%clk 0:00:38.5]} 23. Qf3 {[%clk 0:01:08]} 23...
f5 {[%clk 0:00:19.5]} 24. exf5 {[%clk 0:01:04.1]} 24... Bf6 {[%clk 0:00:19.8]}
25. Bxf6 {[%clk 0:01:00.7]} 25... Rxf6 {[%clk 0:00:19.7]} 26. Re1 {[%clk
0:01:00.2]} 26... Qf8 {[%clk 0:00:19.3]} 27. h3 {[%clk 0:00:59]} 27... Re8
{[%clk 0:00:19.2]} 28. Rxe8 {[%clk 0:00:57.4]} 28... Qxe8 {[%clk 0:00:19.2]} 29.
Re4 {[%clk 0:00:56.7]} 29... Qf7 {[%clk 0:00:18.6]} 30. g4 {[%clk 0:00:56.2]}
30... d5 {[%clk 0:00:18.4]} 31. Re1 {[%clk 0:00:52]} 31... Rd6 {[%clk
0:00:17.8]} 32. Qf4 {[%clk 0:00:52]} 32... Qf6 {[%clk 0:00:17.8]} 33. Qe5 {[%clk
0:00:51.7]} 33... Qxe5 {[%clk 0:00:17.1]} 34. Rxe5 {[%clk 0:00:51.8]} 34... Kg8
{[%clk 0:00:16.5]} 35. Re7 {[%clk 0:00:51.7]} 35... b6 {[%clk 0:00:16.2]} 36.
Rxa7 {[%clk 0:00:51.3]} 36... c5 {[%clk 0:00:16.8]} 37. bxc5 {[%clk 0:00:49.4]}
37... bxc5 {[%clk 0:00:17.1]} 38. Ra5 {[%clk 0:00:49.4]} 38... c4 {[%clk
0:00:17.1]} 39. Rxd5 {[%clk 0:00:46.9]} 39... Ne8 {[%clk 0:00:16.6]} 40. Bxc4
{[%clk 0:00:46]} 40... Kf8 {[%clk 0:00:16]} 41. Rxd6 {[%clk 0:00:45.4]} 41...
Nxd6 {[%clk 0:00:15.9]} 42. Bd3 {[%clk 0:00:45.5]} 42... Ke7 {[%clk 0:00:14.9]}
43. Kg2 {[%clk 0:00:44.7]} 1-0

[Event "*** SCC Grand Prix: Titled Tuesday Blitz"]
[Site "Chess.com"]
[Date "2020.06.02"]
[Round "4"]
[White "lrestevez"]
[Black "MergenKakabaev"]
[Result "0-1"]
[WhiteElo "2149"]
[BlackElo "2398"]
[TimeControl "180+1"]
[EndTime "10:39:21 PDT"]
[Termination "MergenKakabaev won by resignation"]

1. e4 {[%clk 0:03:00.9]} 1... e5 {[%clk 0:02:57.8]} 2. Nf3 {[%clk 0:03:00.2]}
2... Nc6 {[%clk 0:02:57.6]} 3. Bc4 {[%clk 0:02:58.7]} 3... Nf6 {[%clk
0:02:56.7]} 4. Ng5 {[%clk 0:02:59]} 4... d5 {[%clk 0:02:56.1]} 5. exd5 {[%clk
0:02:59.9]} 5... Na5 {[%clk 0:02:55.8]} 6. Bb5+ {[%clk 0:02:59.9]} 6... c6
{[%clk 0:02:55.7]} 7. dxc6 {[%clk 0:03:00.8]} 7... bxc6 {[%clk 0:02:56.6]} 8.
Bd3 {[%clk 0:03:01]} 8... g6 {[%clk 0:02:40.3]} 9. Nc3 {[%clk 0:02:55.8]} 9...
Be7 {[%clk 0:02:39]} 10. O-O {[%clk 0:02:53.3]} 10... Nd5 {[%clk 0:02:32.8]} 11.
Nge4 {[%clk 0:02:53.2]} 11... f5 {[%clk 0:02:32.1]} 12. Ng3 {[%clk 0:02:52.5]}
12... e4 {[%clk 0:02:31.5]} 13. Be2 {[%clk 0:02:37.5]} 13... Be6 {[%clk
0:02:25.8]} 14. d3 {[%clk 0:02:37.4]} 14... Nxc3 {[%clk 0:02:16.5]} 15. bxc3
{[%clk 0:02:36.8]} 15... exd3 {[%clk 0:02:10.8]} 16. Bxd3 {[%clk 0:02:20.6]}
16... O-O {[%clk 0:02:09.1]} 17. Qe2 {[%clk 0:02:20.7]} 17... Bf7 {[%clk
0:01:51.9]} 18. Re1 {[%clk 0:02:21]} 18... Bf6 {[%clk 0:01:49]} 19. Bd2 {[%clk
0:02:15]} 19... Qd5 {[%clk 0:01:38.4]} 20. c4 {[%clk 0:02:01.6]} 20... Nxc4
{[%clk 0:01:32]} 21. Rad1 {[%clk 0:02:01.4]} 21... Nxd2 {[%clk 0:01:27.9]} 22.
Qxd2 {[%clk 0:01:59.6]} 22... Qc5 {[%clk 0:01:27.8]} 23. Qf4 {[%clk 0:01:45.1]}
23... Bxa2 {[%clk 0:01:21.1]} 24. h4 {[%clk 0:01:21.6]} 24... h5 {[%clk
0:01:11]} 25. Qh6 {[%clk 0:01:19.6]} 25... Bf7 {[%clk 0:01:08.5]} 26. Rb1 {[%clk
0:01:11.9]} 26... Rab8 {[%clk 0:01:02.9]} 27. Rxb8 {[%clk 0:01:10.5]} 27... Rxb8
{[%clk 0:01:03.8]} 28. Nxh5 {[%clk 0:01:05]} 28... Bc3 {[%clk 0:00:45.7]} 29.
Re6 {[%clk 0:00:31]} 29... gxh5 {[%clk 0:00:29.7]} 30. Bxf5 {[%clk 0:00:20.5]}
30... Qxf5 {[%clk 0:00:26.6]} 31. Rxc6 {[%clk 0:00:20.3]} 0-1

[Event "*** SCC Grand Prix: Titled Tuesday Blitz"]
[Site "Chess.com"]
[Date "2020.06.02"]
[Round "4"]
[White "Shubinkirill2003"]
[Black "BillieKimbah"]
[Result "0-1"]
[WhiteElo "2715"]
[BlackElo "2884"]
[TimeControl "180+1"]
[EndTime "10:39:24 PDT"]
[Termination "BillieKimbah won by resignation"]

1. e4 {[%clk 0:03:00.9]} 1... c5 {[%clk 0:02:59.6]} 2. Nf3 {[%clk 0:03:00.4]}
2... e6 {[%clk 0:03:00.1]} 3. g3 {[%clk 0:03:00.3]} 3... Nc6 {[%clk 0:02:59.4]}
4. Bg2 {[%clk 0:02:59.2]} 4... Nf6 {[%clk 0:02:59.6]} 5. Qe2 {[%clk 0:02:59]}
5... Be7 {[%clk 0:03:00]} 6. e5 {[%clk 0:02:59.2]} 6... Nd5 {[%clk 0:02:59.8]}
7. O-O {[%clk 0:02:59.6]} 7... O-O {[%clk 0:02:58.8]} 8. Na3 {[%clk 0:02:59.2]}
8... a6 {[%clk 0:02:54.1]} 9. d3 {[%clk 0:02:44.6]} 9... b5 {[%clk 0:02:48.5]}
10. c4 {[%clk 0:02:43.9]} 10... Nc7 {[%clk 0:02:47.8]} 11. Bf4 {[%clk
0:02:34.3]} 11... Bb7 {[%clk 0:02:46.6]} 12. Rfd1 {[%clk 0:02:29.2]} 12... d5
{[%clk 0:02:33.2]} 13. exd6 {[%clk 0:02:09.2]} 13... Bxd6 {[%clk 0:02:32.9]} 14.
Bxd6 {[%clk 0:01:52.4]} 14... Qxd6 {[%clk 0:02:33.8]} 15. cxb5 {[%clk 0:01:52]}
15... Nxb5 {[%clk 0:02:28.5]} 16. Nc4 {[%clk 0:01:37.7]} 16... Qe7 {[%clk
0:02:23.9]} 17. Qe3 {[%clk 0:01:32.7]} 17... Rad8 {[%clk 0:02:20.7]} 18. Rac1
{[%clk 0:01:26.9]} 18... Nbd4 {[%clk 0:02:20.2]} 19. Ncd2 {[%clk 0:01:15.7]}
19... Nb4 {[%clk 0:02:16.6]} 20. Nxd4 {[%clk 0:00:52.9]} 20... cxd4 {[%clk
0:02:13.7]} 21. Qe2 {[%clk 0:00:47.4]} 21... Nxa2 {[%clk 0:02:08.6]} 22. Rc4
{[%clk 0:00:42.4]} 22... Bxg2 {[%clk 0:01:56.2]} 23. Kxg2 {[%clk 0:00:41]} 23...
Qb7+ {[%clk 0:01:54.9]} 24. Nf3 {[%clk 0:00:36.9]} 24... Rd5 {[%clk 0:01:33.8]}
25. Ra1 {[%clk 0:00:28.7]} 25... Nb4 {[%clk 0:01:32.1]} 26. Qe4 {[%clk
0:00:25.5]} 26... h6 {[%clk 0:01:07.3]} 27. Rac1 {[%clk 0:00:17.2]} 27... Na2
{[%clk 0:01:00]} 28. R1c2 {[%clk 0:00:16.3]} 28... Nb4 {[%clk 0:00:59.6]} 29.
Rc1 {[%clk 0:00:16.1]} 29... a5 {[%clk 0:00:55.1]} 30. Rxd4 {[%clk 0:00:15.7]}
30... Rfd8 {[%clk 0:00:51.1]} 31. Rxd5 {[%clk 0:00:13]} 31... Nxd5 {[%clk
0:00:51.2]} 32. Rc2 {[%clk 0:00:10.7]} 32... Rb8 {[%clk 0:00:47.5]} 33. Qc4
{[%clk 0:00:08.2]} 33... Qa8 {[%clk 0:00:42.4]} 34. Re2 {[%clk 0:00:08.1]} 34...
Rb4 {[%clk 0:00:40.7]} 35. Qc5 {[%clk 0:00:08.3]} 35... Rg4 {[%clk 0:00:39]} 36.
h3 {[%clk 0:00:07.9]} 36... Nf4+ {[%clk 0:00:38.3]} 37. Kf1 {[%clk 0:00:07.8]}
37... Qxf3 {[%clk 0:00:36.8]} 0-1

[Event "*** SCC Grand Prix: Titled Tuesday Blitz"]
[Site "Chess.com"]
[Date "2020.06.02"]
[Round "4"]
[White "Ginzburg_Yakov"]
[Black "Skatchkov_V"]
[Result "0-1"]
[WhiteElo "2330"]
[BlackElo "2539"]
[TimeControl "180+1"]
[EndTime "10:39:25 PDT"]
[Termination "Skatchkov_V won by resignation"]

1. d4 {[%clk 0:03:00.7]} 1... Nf6 {[%clk 0:02:57.5]} 2. Nf3 {[%clk 0:03:00.4]}
2... e6 {[%clk 0:02:56.8]} 3. c4 {[%clk 0:03:00.1]} 3... b6 {[%clk 0:02:55.6]}
4. g3 {[%clk 0:03:00.4]} 4... Bb7 {[%clk 0:02:55.7]} 5. Bg2 {[%clk 0:03:01.2]}
5... Be7 {[%clk 0:02:55.8]} 6. O-O {[%clk 0:03:00.7]} 6... O-O {[%clk
0:02:55.7]} 7. d5 {[%clk 0:03:00.7]} 7... exd5 {[%clk 0:02:55]} 8. Nh4 {[%clk
0:03:00.3]} 8... c6 {[%clk 0:02:55.2]} 9. cxd5 {[%clk 0:02:58.2]} 9... Nxd5
{[%clk 0:02:56.1]} 10. Nf5 {[%clk 0:02:55.5]} 10... Nc7 {[%clk 0:02:55.8]} 11.
e4 {[%clk 0:02:53.5]} 11... d5 {[%clk 0:02:55.1]} 12. e5 {[%clk 0:02:49.4]}
12... Ne6 {[%clk 0:02:43.1]} 13. Qg4 {[%clk 0:02:44.9]} 13... g6 {[%clk
0:02:42.8]} 14. Bh6 {[%clk 0:02:33.8]} 14... Re8 {[%clk 0:02:17.5]} 15. Nc3
{[%clk 0:02:33.6]} 15... Nd7 {[%clk 0:02:16]} 16. f4 {[%clk 0:02:29.4]} 16...
Bc5+ {[%clk 0:02:02.6]} 17. Kh1 {[%clk 0:02:29]} 17... Kh8 {[%clk 0:02:00.1]}
18. Nh4 {[%clk 0:02:23]} 18... Be7 {[%clk 0:01:19.8]} 19. Rae1 {[%clk 0:02:19]}
19... Bxh4 {[%clk 0:01:10.1]} 20. gxh4 {[%clk 0:02:19.1]} 20... Ba6 {[%clk
0:01:07.9]} 21. Rf3 {[%clk 0:02:15]} 21... Nd4 {[%clk 0:01:00.1]} 22. Rh3 {[%clk
0:01:42.3]} 22... Nf5 {[%clk 0:00:58.5]} 23. Bg5 {[%clk 0:01:42.4]} 23... f6
{[%clk 0:00:58]} 24. h5 {[%clk 0:01:35.6]} 24... Kg7 {[%clk 0:00:22]} 25. hxg6
{[%clk 0:01:25.5]} 25... hxg6 {[%clk 0:00:22.9]} 26. exf6+ {[%clk 0:01:01]}
26... Nxf6 {[%clk 0:00:23.8]} 27. Rxe8 {[%clk 0:00:59.9]} 27... Qxe8 {[%clk
0:00:24.7]} 28. Bxf6+ {[%clk 0:00:59.9]} 28... Kxf6 {[%clk 0:00:25.6]} 29. Qg5+
{[%clk 0:01:00.7]} 29... Kg7 {[%clk 0:00:24.6]} 30. Rf3 {[%clk 0:00:30.3]} 30...
Qe1+ {[%clk 0:00:21.3]} 31. Bf1 {[%clk 0:00:30.4]} 31... Bxf1 {[%clk 0:00:19.6]}
32. Qg1 {[%clk 0:00:31.1]} 32... Bg2+ {[%clk 0:00:18.6]} 33. Kxg2 {[%clk
0:00:30.3]} 33... Nh4+ {[%clk 0:00:18.7]} 0-1

[Event "*** SCC Grand Prix: Titled Tuesday Blitz"]
[Site "Chess.com"]
[Date "2020.06.02"]
[Round "4"]
[White "DortmundCity"]
[Black "anon569"]
[Result "1-0"]
[WhiteElo "2585"]
[BlackElo "2276"]
[TimeControl "180+1"]
[EndTime "10:39:26 PDT"]
[Termination "DortmundCity won on time"]

1. e4 {[%clk 0:02:52.7]} 1... c5 {[%clk 0:02:58]} 2. Nf3 {[%clk 0:02:50.8]} 2...
d6 {[%clk 0:02:58.4]} 3. d4 {[%clk 0:02:50.5]} 3... cxd4 {[%clk 0:02:59.3]} 4.
Nxd4 {[%clk 0:02:50.5]} 4... Nf6 {[%clk 0:02:58.8]} 5. Nc3 {[%clk 0:02:50.8]}
5... a6 {[%clk 0:02:59]} 6. Bg5 {[%clk 0:02:49.1]} 6... Nbd7 {[%clk 0:02:58.1]}
7. f4 {[%clk 0:02:49.1]} 7... Qc7 {[%clk 0:02:57.4]} 8. Qf3 {[%clk 0:02:48.6]}
8... b5 {[%clk 0:02:56.6]} 9. O-O-O {[%clk 0:02:27.6]} 9... Bb7 {[%clk
0:02:53.9]} 10. a3 {[%clk 0:02:18]} 10... g6 {[%clk 0:02:49.1]} 11. Nd5 {[%clk
0:02:10]} 11... Nxd5 {[%clk 0:02:43.4]} 12. exd5 {[%clk 0:02:10.9]} 12... Bg7
{[%clk 0:02:43.5]} 13. Nc6 {[%clk 0:02:04]} 13... Nf6 {[%clk 0:02:15.9]} 14.
Bxf6 {[%clk 0:01:53.9]} 14... Bxf6 {[%clk 0:02:14.3]} 15. g4 {[%clk 0:01:54.5]}
15... Rc8 {[%clk 0:02:05.1]} 16. Bg2 {[%clk 0:01:47.5]} 16... e6 {[%clk
0:01:54.3]} 17. dxe6 {[%clk 0:01:44.7]} 17... Bxc6 {[%clk 0:01:51.2]} 18. exf7+
{[%clk 0:01:39.7]} 18... Kf8 {[%clk 0:01:33.4]} 19. Qe2 {[%clk 0:01:37.3]} 19...
Bxg2 {[%clk 0:01:31.1]} 20. Qxg2 {[%clk 0:01:38.2]} 20... Qc5 {[%clk 0:01:24.3]}
21. g5 {[%clk 0:01:31.8]} 21... Bg7 {[%clk 0:01:16.9]} 22. c3 {[%clk 0:01:32.2]}
22... b4 {[%clk 0:01:09.4]} 23. axb4 {[%clk 0:01:28.4]} 23... Qxb4 {[%clk
0:01:08.2]} 24. Rd2 {[%clk 0:01:29]} 24... Qa5 {[%clk 0:01:00]} 25. Qb7 {[%clk
0:01:24.4]} 25... Rc7 {[%clk 0:00:53.6]} 26. Qb8+ {[%clk 0:01:20.7]} 26... Kxf7
{[%clk 0:00:53]} 27. Qb3+ {[%clk 0:01:20.3]} 27... Ke7 {[%clk 0:00:21.8]} 28.
Re1+ {[%clk 0:01:17.2]} 28... Kd8 {[%clk 0:00:21.6]} 29. Rxd6+ {[%clk
0:01:09.4]} 29... Kc8 {[%clk 0:00:20.4]} 30. Rb6 {[%clk 0:00:39.5]} 30... Qa1+
{[%clk 0:00:11.3]} 31. Kd2 {[%clk 0:00:39.3]} 31... Rd8+ {[%clk 0:00:11.5]} 32.
Kc2 {[%clk 0:00:37]} 32... Qxe1 {[%clk 0:00:02.4]} 33. Rb8+ {[%clk 0:00:36.4]}
33... Kd7 {[%clk 0:00:01.6]} 34. Qd5+ {[%clk 0:00:36.9]} 34... Ke7 {[%clk
0:00:01.3]} 35. Qxd8+ {[%clk 0:00:35.7]} 1-0

[Event "*** SCC Grand Prix: Titled Tuesday Blitz"]
[Site "Chess.com"]
[Date "2020.06.02"]
[Round "4"]
[White "Zmeeed63"]
[Black "Michaelson_11"]
[Result "0-1"]
[WhiteElo "2207"]
[BlackElo "2007"]
[TimeControl "180+1"]
[EndTime "10:39:27 PDT"]
[Termination "Michaelson_11 won by checkmate"]

1. d4 {[%clk 0:03:00.9]} 1... Nf6 {[%clk 0:02:59.4]} 2. c4 {[%clk 0:03:01.4]}
2... e6 {[%clk 0:02:59.4]} 3. Nc3 {[%clk 0:02:59.7]} 3... Bb4 {[%clk 0:02:59.5]}
4. f3 {[%clk 0:03:00.1]} 4... c5 {[%clk 0:02:58]} 5. d5 {[%clk 0:02:59.8]} 5...
b5 {[%clk 0:02:58.2]} 6. e4 {[%clk 0:02:54.7]} 6... O-O {[%clk 0:02:58.1]} 7. a3
{[%clk 0:02:33.2]} 7... Bxc3+ {[%clk 0:02:57]} 8. bxc3 {[%clk 0:02:34.1]} 8...
bxc4 {[%clk 0:02:12.2]} 9. Bxc4 {[%clk 0:02:20.8]} 9... exd5 {[%clk 0:01:49.8]}
10. Bxd5 {[%clk 0:01:55]} 10... Nxd5 {[%clk 0:01:41.1]} 11. Qxd5 {[%clk
0:01:55.9]} 11... Nc6 {[%clk 0:01:41]} 12. Qxc5 {[%clk 0:01:52.8]} 12... Ba6
{[%clk 0:01:28.1]} 13. Ne2 {[%clk 0:01:41.3]} 13... f5 {[%clk 0:01:23.9]} 14. e5
{[%clk 0:00:46.3]} 14... Rc8 {[%clk 0:00:58.6]} 15. Qd5+ {[%clk 0:00:38.2]}
15... Kh8 {[%clk 0:00:55.8]} 16. Be3 {[%clk 0:00:30.4]} 16... Re8 {[%clk
0:00:29.8]} 17. f4 {[%clk 0:00:28]} 17... d6 {[%clk 0:00:30]} 18. e6 {[%clk
0:00:19.3]} 18... Qf6 {[%clk 0:00:23.6]} 19. Nd4 {[%clk 0:00:15.3]} 19... Nxd4
{[%clk 0:00:19.1]} 20. Bxd4 {[%clk 0:00:12.8]} 20... Rxe6+ {[%clk 0:00:12.1]}
21. Kf2 {[%clk 0:00:10.1]} 21... Re2+ {[%clk 0:00:11.5]} 22. Kf3 {[%clk
0:00:09.3]} 22... Qh6 {[%clk 0:00:09.5]} 23. Qxf5 {[%clk 0:00:07.6]} 23... Rce8
{[%clk 0:00:09.7]} 24. g4 {[%clk 0:00:06]} 24... Bb7+ {[%clk 0:00:09.3]} 25. Kg3
{[%clk 0:00:05.6]} 25... Rg2# {[%clk 0:00:09.8]} 0-1